Cogmind - Beta 11 X7 @@@ ROGUE MODE // 2021.09.12 @ 15:05:28 Player: Plexion Result: Destroyed by G-47 Trooper with Particle Gun Performance ------------- Evolutions (1) 500 Regions Visited (6) 1200 Robots Destroyed (54) 270 Value Destroyed (1237) 1237 Prototype IDs (30) 600 Alien Tech Used (0) 0 Bonus (269) 269 TOTAL SCORE: 4076 Bonus ------- High Alert Combat Kills 11 Follower Combat Kills 60 Aligned with FarCom 300 Friendly Fire -102 Cogmind --------- Core Integrity 0/400 Matter 239/300 Energy 304/310 System Corruption 0% Temperature Cool (27) Movement Walking (120) Location -8/Mines Parts ------- > --- POWER (1) -------- Reinforced Fission Core > --- PROPULSION (2) --- Advanced Myomer Leg Advanced Myomer Leg > --- UTILITY (4) ------ Improved Heat Sink Advanced Heat Sink Experimental Heat Sink Large Storage Unit > --- WEAPON (2) ------- Heavy Laser 8R-AWN's Boregun > --- INVENTORY (15) --- Light Angular Momentum Engine Gravity Neutralizing Apparatus Advanced Weapon Cycler 8R-AWN's Armor/EX Splice Drone Bay (6/6) AS-neutralizer No. 17b 8R-AWN's Boregun Grenade Launcher Plasma Cutter Katana Peak State ------------ > --- POWER ------------ Reinforced Fission Core > --- PROPULSION ------- Advanced Myomer Leg Advanced Myomer Leg > --- UTILITY ---------- Improved Heat Sink Experimental Heat Sink Large Storage Unit > --- WEAPON ----------- 8R-AWN's Boregun 8R-AWN's Boregun > --- INVENTORY -------- Light Angular Momentum Engine Gravity Neutralizing Apparatus Advanced Weapon Cycler 8R-AWN's Armor/EX Splice Drone Bay AS-neutralizer No. 17b Heavy Laser Grenade Launcher Plasma Cutter Katana [Rating: 59] Favorites ----------- Power Light Ion Engine Engine Light Ion Engine Power Core Reinforced Fission Core Propulsion Improved Treads Treads Improved Treads Leg Advanced Myomer Leg Utility Reflective Plating Device Experimental Heat Sink Storage Large Storage Unit Protection Reflective Plating Weapon Assault Rifle Energy Gun Heavy Laser Ballistic Gun Assault Rifle Ballistic Cannon Light Cannon Launcher Grenade Launcher Special Weapon Plasma Cutter Slashing Weapon Katana Build | -11 -10 -10 -9 -9 -9 -8 ------- Run | Scr Mat Min Mat Min Exi Min Slots Evolved 2 | . . . 2 . . . Power . | . . . . . . . Propulsion . | . . . . . . . Utility 2 | . . . 2 . . . Weapon . | . . . . . . . Parts Attached 65 | 6 4 5 16 2 17 15 Power 6 | 1 1 1 2 . 1 . Engine 5 | 1 1 1 2 . . . Core 1 | . . . . . 1 . Reactor . | . . . . . . . Propulsion 11 | 2 1 . 2 . 3 3 Treads 9 | 2 1 . 2 . 3 1 Leg 2 | . . . . . . 2 Wheel . | . . . . . . . Hover . | . . . . . . . Flight . | . . . . . . . Utility 24 | 1 1 1 7 2 7 5 Device 12 | . . 1 3 1 3 4 Storage 2 | 1 1 . . . . . Processor . | . . . . . . . Hackware . | . . . . . . . Protection 10 | . . . 4 1 4 1 Artifact . | . . . . . . . Weapon 24 | 2 1 3 5 . 6 7 Energy Gun 3 | . . . . . . 3 Energy Cannon . | . . . . . . . Ballistic Gun 13 | 2 1 1 3 . 2 4 Ballistic Cannon 2 | . . . 1 . 1 . Launcher 4 | . . 2 1 . 1 . Special Weapon 1 | . . . . . 1 . Impact Weapon . | . . . . . . . Slashing Weapon 1 | . . . . . 1 . Piercing Weapon . | . . . . . . . Special Melee Weapon . | . . . . . . . Unidentified Prototypes 7 | . . . . 1 5 1 Parts Lost 24 | . . 1 3 . 14 6 Power 3 | . . 1 1 . 1 . Propulsion 6 | . . . . . 3 3 Utility 7 | . . . . . 5 2 Weapon 8 | . . . 2 . 5 1 Highest Loss Streak 9 | . . 1 1 . 9 4 Average Slot Usage (%) 90 | . 84 92 94 100 91 79 Engine 9 | . 13 14 10 11 7 . Core 1 | . . . . . . 11 Treads 20 | . 28 28 22 22 21 5 Leg 2 | . . . . . . 15 Device 5 | . . 7 5 . . 22 Storage 11 | . 14 14 11 11 11 11 Protection 15 | . . . 22 33 29 . Energy Gun 1 | . . . . . . 9 Ballistic Gun 14 | . 28 20 17 11 7 2 Ballistic Cannon 3 | . . . 3 11 7 . Launcher 1 | . . 7 1 . . . Naked Turns . | . . . . . . . Heaviest Build 67 | 14 32 29 42 42 67 67 Greatest Support 60 | 40 40 40 46 46 46 60 Greatest Overweight (x) 3 | 3 . . . . 1 1 Average Overweight (x) . | . . . . . . . Largest Inventory Capacity 15 | 8 15 15 15 15 15 15 Average Capacity 14 | 7 9 15 15 15 15 15 Most Carried 15 | 2 4 4 15 15 15 15 Average Carried 9 | . 2 4 9 14 12 12 Final Capacity 15 | 8 15 15 15 15 15 15 Final Carried 15 | 2 4 4 15 15 13 11 Class Distribution -------------------- 82% | Mutant 17% | Scavenger-Mutant Dominant Class ---------------- Mutant | -10/Materials Mutant | -10/Mines Mutant | -9/Materials Mutant | -9/Mines Mutant | -9/Exiles Scavenger-Mutant | -8/Mines Resources | -11 -10 -10 -9 -9 -9 -8 ----------- Run | Scr Mat Min Mat Min Exi Min Matter Collected 1612 | 199 107 117 620 111 137 321 Remotely 172 | . . . 172 . . . Salvage Created 1735 | . 117 76 859 90 120 473 Parts 121 | . 10 14 58 9 9 21 Haulers Intercepted 4 | . . . 4 . . . Recyclers Shooed 1 | . . . . . . 1 Parts Field Recycled . | . . . . . . . Retrieved Matter . | . . . . . . . Parts Self-Destructed . | . . . . . . . Prevented . | . . . . . . . Kills | -11 -10 -10 -9 -9 -9 -8 ------- Run | Scr Mat Min Mat Min Exi Min Combat Hostiles Destroyed 46 | . 5 9 19 4 1 8 Melee 1 | . . . . . 1 . Guns 31 | . 5 3 14 2 . 7 Cannons 5 | . . . 3 2 . . AOE 8 | . . 6 2 . . . Classes Destroyed 8 | . 2 . 4 . . 2 Worker 2 | . . . 1 1 . . Tunneler 1 | . . . . . . 1 Hauler 4 | . . . 4 . . . Operator 1 | . . . 1 . . . Swarmer 21 | . 3 9 6 3 . . Grunt 20 | . 2 . 10 1 . 7 Sentry 3 | . . . 3 . . . Hunter 1 | . . . . . . 1 Best Kill Streak 5 | . 3 3 5 3 1 2 Combat Bots Only 5 | . 3 3 5 3 1 2 Max Kills in Single Turn 3 | . 1 3 2 1 1 1 Gunslinging 1 | . . . 1 . . . Exploded 3 | . . 3 2 . . . Melee 1 | . . . . . 1 . Uniques/NPCs Destroyed 1 | . . . . . 1 . 8R-AWN (-9/Exiles) Combat | -11 -10 -10 -9 -9 -9 -8 -------- Run | Scr Mat Min Mat Min Exi Min Damage Taken 3339 | . 166 246 515 156 1355 901 Core 486 | . 14 61 55 29 170 157 Absorbed by Shields . | . . . . . . . Core Remaining (%) 85 | 100 . 70 . . . . Volleys Fired 158 | . 16 10 59 13 5 55 Largest 2 | . 2 2 2 2 2 2 Hottest 138 | . 40 40 58 58 43 138 Shots Fired 267 | . 32 14 113 26 10 72 Gun 221 | . 32 8 91 13 5 72 Cannon 33 | . . . 20 13 . . Launcher 8 | . . 6 2 . . . Special 5 | . . . . . 5 . Kinetic 224 | . 32 8 111 26 5 42 Thermal 35 | . . . . . 5 30 Explosive 8 | . . 6 2 . . . Electromagnetic . | . . . . . . . Robot Hit Streak 9 | . 6 6 7 2 6 9 Robot Miss Streak 4 | . 2 3 3 3 1 4 Penetration Max 1 | . . . . . . 1 Secondary Targets 4 | . . 1 3 . . . Max Gunslinging Chain 1 | . . 1 1 . . . Shots Hit Robots 195 | . 19 8 66 11 49 42 Core Hits 81 | . 8 9 38 5 8 13 Critical Kills 5 | . . . 1 . . 4 Critical Parts Destroyed 10 | . . . 1 . . 9 Critical Strikes 18 | . . . 3 . 1 14 Burn 1 | . . . . . . 1 Destroy 15 | . . . 2 . . 13 Blast 1 | . . . 1 . . . Sever 1 | . . . . . 1 . Melee Attacks 57 | . . . . . 57 . Impact . | . . . . . . . Slashing 57 | . . . . . 57 . Piercing . | . . . . . . . Sneak Attacks . | . . . . . . . Combat Hostiles . | . . . . . . . Follow-up Attacks . | . . . . . . . Damage Inflicted 4238 | . 245 525 1083 185 1333 867 Guns 2066 | . 245 72 746 57 79 867 Cannons 318 | . . . 190 128 . . Explosions 600 | . . 453 147 . . . Melee 1250 | . . . . . 1250 . Ramming . | . . . . . . . Kinetic 1984 | . 245 72 936 185 79 467 Thermal 404 | . . . . . 4 400 Explosive 600 | . . 453 147 . . . Electromagnetic . | . . . . . . . Impact . | . . . . . . . Slashing 1250 | . . . . . 1250 . Piercing . | . . . . . . . Highest Corruption . | . . . . . . . Average Corruption . | . . . . . . . Corruption Purged . | . . . . . . . Overload Shots . | . . . . . . . Overflow Damage 58 | . . 36 . 6 16 . Projectiles 6 | . . . . 6 . . Explosions 36 | . . 36 . . . . Melee 16 | . . . . . 16 . Knockbacks 1 | . . . . 1 . . Impact . | . . . . . . . Kinetic 1 | . . . . 1 . . Secondary . | . . . . . . . Self-Inflicted Damage 74 | . . 56 18 . . . Shots 4 | . . 3 1 . . . Rammed . | . . . . . . . Targets Rammed . | . . . . . . . Kicked . | . . . . . . . Crushed . | . . . . . . . Highest Temperature 81 | . 2 . 51 81 . . Average Temperature 20 | . 2 . 14 32 . . Received Heat Transfer 666 | . 75 . 222 . . 369 Siege Activations . | . . . . . . . Robots Corrupted . | . . . . . . . Combat Hostiles . | . . . . . . . Parts Fried . | . . . . . . . Impact Corruptions . | . . . . . . . Robots Melted 1 | . . . . . . 1 Combat Hostiles 1 | . . . . . . 1 Parts Melted 1 | . . . . . . 1 Heat Transferred 887 | . . . . . 36 851 Parts Sabotaged . | . . . . . . . Parts Stolen . | . . . . . . . Parts Stripped . | . . . . . . . Power Chain Reactions . | . . . . . . . Missiles Intercepted . | . . . . . . . Alert | -11 -10 -10 -9 -9 -9 -8 ------- Run | Scr Mat Min Mat Min Exi Min Peak Influence 415 | . 145 271 415 173 . 137 Initial 103 | . . 56 11 103 . . Average 121 | . 51 195 202 103 . 55 Maximum Alert Level 2 | . . 1 2 . . . Low Security (%) 78 | 100 100 40 54 100 . 100 Level 1 20 | . . 59 43 . . . Level 2 . | . . . 1 . . . Level 3 . | . . . . . . . Level 4 . | . . . . . . . Level 5 . | . . . . . . . High Security . | . . . . . . . Max Security . | . . . . . . . Squads Dispatched 5 | . . . 4 . . 1 Investigation . | . . . . . . . Extermination . | . . . . . . . Reinforcement 5 | . . . 4 . . 1 Assault . | . . . . . . . Garrison . | . . . . . . . Intercept . | . . . . . . . Construction Impeded 1 | . . . . . . 1 Haulers Reinforced . | . . . . . . . Active Scanning Responses . | . . . . . . . Cargo Convoy Interrupts . | . . . . . . . Stealth | -11 -10 -10 -9 -9 -9 -8 --------- Run | Scr Mat Min Mat Min Exi Min Distress Signals 3 | . 1 . 2 . . . Communications Jammed . | . . . . . . . Distress Signals . | . . . . . . . Times Spotted 71 | . 11 9 32 6 2 11 Peak Tracking Total 5 | . 4 3 5 3 2 3 Tactical Retreats 2 | . 1 . . . . 1 Traps | -11 -10 -10 -9 -9 -9 -8 ------- Run | Scr Mat Min Mat Min Exi Min Traps Triggered 2 | . 2 . . . . . Indirectly . | . . . . . . . Trap Hack Attempts . | . . . . . . . Triggered . | . . . . . . . Disarmed . | . . . . . . . Reprogrammed . | . . . . . . . Reused . | . . . . . . . Traps Extracted . | . . . . . . . Installed . | . . . . . . . Triggered . | . . . . . . . Exploded 2 | . . . . . 2 . Machines | -11 -10 -10 -9 -9 -9 -8 ---------- Run | Scr Mat Min Mat Min Exi Min Machines Disabled . | . . . . . . . Max in Single Turn . | . . . . . . . Machines Sabotaged . | . . . . . . . Garrisons Compromised . | . . . . . . . Overloaded Fab Kills . | . . . . . . . Fab Network Shutdowns . | . . . . . . . Hacking | -11 -10 -10 -9 -9 -9 -8 --------- Run | Scr Mat Min Mat Min Exi Min Machines Accessed 4 | . . . 1 1 2 . Terminals 1 | . . . 1 . . . Fabricators . | . . . . . . . Repair Stations . | . . . . . . . Recycling Units . | . . . . . . . Scanalyzers . | . . . . . . . Garrison Access . | . . . . . . . Total Hacks 4 | . . . 1 1 2 . Successful 4 | . . . 1 1 2 . Failed . | . . . . . . . Catastrophic . | . . . . . . . Database Lockouts . | . . . . . . . Manual 2 | . . . 1 . 1 . Terminals 1 | . . . 1 . . . Fabricators . | . . . . . . . Repair Stations . | . . . . . . . Recycling Units . | . . . . . . . Scanalyzers . | . . . . . . . Garrison Access . | . . . . . . . Terminal Hacks 4 | . . . 1 1 2 . Record 1 | . . . . . 1 . Robot Analysis 1 | . . . 1 . . . Open Door 1 | . . . . 1 . . EX-Prototype ID Bank 1 | . . . . . 1 . Fabricator Hacks . | . . . . . . . Repair Station Hacks . | . . . . . . . Recycling Unit Hacks . | . . . . . . . Scanalyzer . | . . . . . . . Garrison Access Hacks . | . . . . . . . Unauthorized Hacks . | . . . . . . . Terminals . | . . . . . . . Fabricators . | . . . . . . . Repair Stations . | . . . . . . . Recycling Units . | . . . . . . . Scanalyzers . | . . . . . . . Garrison Access . | . . . . . . . Data Cores Recovered 1 | . . . 1 . . . Used . | . . . . . . . Hacking Detections . | . . . . . . . Full Trace Events . | . . . . . . . Feedback Events . | . . . . . . . Feedback Blocked . | . . . . . . . Robot Schematics Acquired . | . . . . . . . Robots Built . | . . . . . . . Matter . | . . . . . . . Time . | . . . . . . . Total Robot Build Rating . | . . . . . . . Part Schematics Acquired . | . . . . . . . Parts Built . | . . . . . . . Matter . | . . . . . . . Time . | . . . . . . . Total Part Build Rating . | . . . . . . . Parts Repaired . | . . . . . . . Time . | . . . . . . . Parts Recycled . | . . . . . . . Recycled Matter . | . . . . . . . Retrieved Matter . | . . . . . . . Retrieved Components . | . . . . . . . Parts Scanalyzed . | . . . . . . . Part Schematics Acquired . | . . . . . . . Parts Damaged . | . . . . . . . Bothacking | -11 -10 -10 -9 -9 -9 -8 ------------ Run | Scr Mat Min Mat Min Exi Min Used RIF Installer . | . . . . . . . Robots Hacked . | . . . . . . . Non-combat . | . . . . . . . Combat . | . . . . . . . Robot Hacks Applied . | . . . . . . . Relay Couplers Released . | . . . . . . . Robots Rewired . | . . . . . . . Allies Hacked . | . . . . . . . Hacks Repelled . | . . . . . . . Allies | -11 -10 -10 -9 -9 -9 -8 -------- Run | Scr Mat Min Mat Min Exi Min Total Allies 5 | . . 2 . 3 . . Largest Group 3 | . . 2 . 3 . . Highest-Rated Group 41 | . . 41 . 40 . . Highest-Rated Ally 31 | . . 31 . 16 . . Total Orders . | . . . . . . . Ally Attacks 28 | . . 3 . 25 . . Total Damage 218 | . . 20 . 198 . . Kills 3 | . . . . 3 . . Allies Corrupted . | . . . . . . . Allies Melted . | . . . . . . . Intel | -11 -10 -10 -9 -9 -9 -8 ------- Run | Scr Mat Min Mat Min Exi Min Robot Analysis Total 1 | . . . 1 . . . Derelict Logs Recovered 2 | . . 1 . 1 . . Drone Launches . | . . . . . . . Drone Recoveries . | . . . . . . . Exploration | -11 -10 -10 -9 -9 -9 -8 ------------- Run | Scr Mat Min Mat Min Exi Min Turns Passed 4001 | 82 635 462 915 526 733 648 Spaces Moved 2079 | 49 359 266 431 300 299 375 Core 15 | 15 . . . . . . Treads 1726 | 34 359 266 431 300 299 37 Legs 338 | . . . . . . 338 Wheels . | . . . . . . . Hover . | . . . . . . . Flight . | . . . . . . . Fastest Speed 50 | 50 160 160 160 160 160 120 Average Speed 156 | 147 160 160 160 160 168 133 Slowest Speed 260 | 200 160 160 160 160 260 260 Overloaded Moves . | . . . . . . . Propulsion Burnouts . | . . . . . . . Robots Hopped . | . . . . . . . Cave-ins Triggered . | . . . . . . . Exploration Rate (%) 56 | 3 76 64 47 58 69 79 Regions Visited 6 Branch Regions 4 Pre-discovered Areas 1 | . . . . . 1 . Known Exits Taken 1 | . . . 1 . . . Unknown Exits Taken 5 | 1 1 1 . 1 1 . Scrap Searched 4 | . . 1 . 2 . 1 Spaces Dug 22 | . . 8 14 . . . Terrain Destroyed 55 | . . 26 14 . . 15 Melee . | . . . . . . . Projectile 12 | . . . . . . 12 AOE 40 | . . 26 14 . . . Terrain Rammed . | . . . . . . . Walls Destroyed . | . . . . . . . Machines Disabled . | . . . . . . . Actions | -11 -10 -10 -9 -9 -9 -8 --------- Run | Scr Mat Min Mat Min Exi Min Total 2472 | 56 387 286 541 321 429 452 Wait 71 | . 4 6 18 1 40 2 Move 2073 | 48 358 265 430 299 298 375 Hop . | . . . . . . . Pick Up 22 | 2 3 . 9 2 5 1 Fast Attach 32 | 6 3 2 8 2 6 5 Attach 21 | . 1 . 2 . 10 8 Detach 15 | . 1 . 5 . 5 4 Swap 12 | . . 3 6 . 1 2 Drop 11 | . 1 . 4 4 2 . Fire 158 | . 16 10 59 13 5 55 Melee 57 | . . . . . 57 . Ram . | . . . . . . . Kick . | . . . . . . . Crush . | . . . . . . . Escape Stasis . | . . . . . . . Rewire . | . . . . . . . Trap . | . . . . . . . Miscellaneous . | . . . . . . . Route ------- -11/Scrapyard -10/Materials (discovered 4 exits: *Mat x3 / [*Min]) -10/Mines -9/Materials (discovered 3 exits: [*Mat] / *Min x2) -9/Mines (discovered 3 exits: [*Mat] / *Exi / [*Zio]) -9/Exiles -8/Mines History --------- Turn | Location | Event 4 | -11/Scrapyard | Discovered new exit (range 16) 83 | -11/Scrapyard | Entered Materials 284 | -10/Materials | Discovered new exit (range 5) 317 | -10/Materials | Build established: Mutant 556 | -10/Materials | Discovered new exit (range 8) 670 | -10/Materials | Discovered new exit (range 8) 694 | -10/Materials | Discovered new exit (range 15) 718 | -10/Materials | Entered Mines 857 | -10/Mines | Assembled infested the area 862 | -10/Mines | Assisted by a Guerilla fighting off Assembled 1151 | -10/Mines | Discovered new exit (range 15) 1180 | -10/Mines | Entered Materials 1180 | -9/Materials | Evolved 2 slots: Utility x2 1181 | -9/Materials | Identified exit to Mines 1748 | -9/Materials | Discovered new exit (range 16) 2095 | -9/Materials | Entered Mines 2186 | -9/Mines | Met a Derelict bent on vengeance 2226 | -9/Mines | A Derelict revealed a hidden shortcut to a safe place 2283 | -9/Mines | Assisted by bots powering up and referring to "LRC-V3" 2405 | -9/Mines | Found the Drone Emporium 2440 | -9/Mines | Learned Materials trap positions 2446 | -9/Mines | Found Prototype Device 2446 | -9/Mines | Identified Splice Drone Bay 2563 | -9/Mines | Discovered new exit (range 5) 2613 | -9/Mines | Deemed a non-threat by the Exiles lab entrance 2614 | -9/Mines | Discovered new exit (range 5) 2621 | -9/Mines | Entered Exiles 2661 | -9/Exiles | Met 8R-AWN 2687 | -9/Exiles | Met EX-HEX 2746 | -9/Exiles | Met EX-DEC 2773 | -9/Exiles | Learned location of Zion (-7) 2805 | -9/Exiles | Met EX-BIN 2828 | -9/Exiles | Aligned with FarCom system 2829 | -9/Exiles | Given EX-Vault access code 2869 | -9/Exiles | Opened EX-Vault 2906 | -9/Exiles | Warned to stay clear of 0b10 Research branches 2934 | -9/Exiles | Exiles lab attacked by MAIN.C 3044 | -9/Exiles | Discovered new exit (range 10) 3098 | -9/Exiles | Attacked by the Exiles 3201 | -9/Exiles | Lost 9 parts (1p1n3u4w) 3214 | -9/Exiles | Core integrity fell below 50% 3265 | -9/Exiles | Lost 4 parts (2n1u1w) 3275 | -9/Exiles | Destroyed 8R-AWN 3279 | -9/Exiles | Found Prototype Ballistic Gun 3281 | -9/Exiles | Found Prototype Ballistic Gun 3281 | -9/Exiles | Identified 8R-AWN's Boregun (x2) 3287 | -9/Exiles | Found Prototype Protection 3287 | -9/Exiles | Identified 8R-AWN's Armor/EX 3298 | -9/Exiles | Found Prototype Device 3298 | -9/Exiles | Identified AS-neutralizer No. 17b 3354 | -9/Exiles | Entered Mines 3555 | -8/Mines | Lost 4 parts (3n1u) 3572 | -8/Mines | Build established: Scavenger-Mutant 3889 | -8/Mines | Core integrity fell below 20% 4002 | -8/Mines | Destroyed by G-47 Trooper with Particle Gun Last Messages --------------- 03939_ HV Slug penetrates Wall. 03949_ Acquired Hvy. Laser. 03952_ Acquired 70 matter. 03954_ Acquired Adv. Heat Sink. 03964_ R-06 Scavenger collects Lgt. Angular Momentum Engine. 03966_ U-05 Engineer lays Concrete. 03985_ G-47 Trooper destroyed. 03990_ Hvy. Laser destroyed. 03992_ HV Slug penetrates Wall. 03995_ G-47 Trooper suffers critical hit (Burn). 03995_ HV Slug penetrates G-47 Trooper. 03995_ HV Slug penetrates Wall. 03996_ G-47 Trooper heat damages Lgt. Nuclear Core. 03998_ HV Slug penetrates Wall. 03998_ Critical hit (Burn: +37). 04001_ HV Slug penetrates G-47 Trooper. 04001_ Aluminum Leg melted. 04001_ G-47 Trooper destroyed. 04001_ HV Slug penetrates Wall. 04002_ Critical hit (Burn: +37). Map ----- +----------------------------------------------------+ | ##### #????###????????# % #???? | | #???????????????# """ #???? | | #######??????????????# """ ## #???? | | ????????????????????? """ ## #???? | | ?????????????????????? ### #???? | | ????????????????????? ## #??# #???? | | ????????????????????##??####???# #???? | | ?????????????????????????????### #???? | | ????????????????????????????## #???? | | ???????????????????????????## ##??? | | ?????????????????????????### #??? | | ????????????????????????## #??? | | #???????????????????????# ##??? | | ###?????????????????????# ##??? | | ##????????????????????### ##?? | | #??????????????????????## #?? | | ####????????????????????## #?? | | #?????????????????????## ##? | | ## #?????????# ???????????## #? | | ## #??????? ???????????# #? | | ### #?????? ???????????# ##? | | ###?# #????? #??????????## ###?? | | ????# #??? #??????????# ##???? | | ????# #?? ##????????## #????? | | ????# ## ???##### #????? | | ##### ##@ #????? | | u! #????? | | ########### g ##????? | | #??????????# ## % ##?????? | | #??????????# ????## *#######??????? | | #???????????????????### ?????????????? | | #????????????????????? ?????????????? | | ??????????????????? ?????????????? | | """ #????????????????### ?????????????? | | """ #??????????????????# ?????????????? | | """ #??????????????????# ?????????????? | | #??????????????????# ?????????????? | | #####??????????????????#??????????????? | | ??????????????????????????????????????? | | ??????????????????????????????????????? | | ??????????????????????????????????????? | | ??????????????????????????????????????? | | ??????????????????????????????????????? | | ??????????????????????????????????????? | | ??????????????????????????????????????? | | ??????????????????????????????????????? | | ??????????????????????????????????????? | | ??????????????????????????????????????? | | ??????????????????????????????????????? | | ??????????????????????????????????????? | +----------------------------------------------------+ Best States ------------- Heat Dissipation 87 Energy Generation 19 Energy Capacity 310 Matter Stores 300 Matter Capacity 300 Sight Range 16 Terrain Scan Density 10 Armor Coverage 1000 Resistance: TH 10 Resistance: EX 90 Core Shielding 20 Evasion (%) 55 Recoil Reduction 2 Item Schematics ----------------- None Robot Schematics ------------------ None Fabricated ------------ Nothing Alien Tech Used ----------------- None Achievements -------------- None Challenges ------------ None Game ------ Seed MomentumMinesnifferSheargun Manual? 0 Play Time 00:22:03 Cumulative 231.2 hours Start 2021.09.11 @ 22:34:19 End 2021.09.12 @ 15:05:28 Sessions 3 Manual Loads 0 Difficulty Rogue Special Mode None Game No. 291 Rogue 204 Adventurer 87 Explorer 0 Win Type - Total 5 Types 3/0/1/1/0/0/0/0/0 Lore% 71 Gallery% 79 Achievement% 67 Wizard Run 0 Options --------- ASCII 0 Keyboard 1 Movement Numpad Keybinds 0 Fullscreen 1 Font 18/Smallcaps Map View 76x50 Tactical HUD 1 Map Filters NONE Filters NONE Steam 1 RUN: 8cbebc36-feb9-471f-bc72-626707a27d3d